bitfinex/quotes_ETHUSD_20250703
["timestamp","ask_amount","ask_price","bid_price","bid_amount"]
[1751555441332,0.02,2586.1,2586.0,13.59254578]
[1751555441631,0.02,2586.1,2586.0,13.55387602]
[1751555442751,0.02,2586.1,2586.0,13.55187602]
[1751555443439,0.02,2586.1,2585.7,2.166]
[1751555443621,0.02,2586.1,2585.7,6.03330795]
[1751555443916,3.88684479,2586.1,2585.6,3.86751604]
[1751555444232,4.67978328,2586.0,2585.5,12.20366079]
[1751555444603,4.67978328,2586.0,2585.5,8.336]
[1751555444805,0.46997833,2585.9,2585.4,12.20379691]
[1751555445008,3.86732915,2585.8,2585.4,8.336]
[1751555445505,0.46997833,2585.9,2585.2,9.297]
[1751555445807,33.86715019,2585.9,2585.2,3.86817267]
[1751555446001,3.86715019,2585.9,2585.3,3.86793733]
[1751555446201,3.86729685,2585.8,2585.3,3.86793733]
[1751555446556,3.8672089,2585.9,2585.4,3.86779687]
[1751555446743,0.8128,2586.0,2585.1,8.336]
[1751555447040,0.8128,2586.0,2585.8,3.86725635]
[1751555447237,0.1928,2585.9,2585.8,3.86725635]
[1751555447535,0.02,2586.1,2585.9,3.86711619]
[1751555447724,0.02,2586.1,2586.0,3.86697602]
[1751555448548,0.02,2586.1,2585.9,3.86705571]
[1751555449051,0.02,2586.1,2585.8,3.90587113]
[1751555449223,0.02,2586.1,2585.9,3.86711458]
[1751555450169,0.02,2586.1,2586.0,0.23146976]
[1751555450452,0.02,2586.1,2585.9,4.05984027]
[1751555451028,0.02,2586.1,2586.0,3.86697602]
[1751555453361,0.02,2586.1,2585.9,4.09852857]
[1751555453559,0.02,2586.1,2586.0,3.86697602]
[1751555454263,0.02,2586.1,2586.0,3.76697602]
[1751555454967,0.02,2586.1,2585.9,4.05985825]
[1751555455335,0.02,2586.1,2585.9,4.0985295]
[1751555455635,0.02,2586.1,2586.0,3.86697602]
[1751555455936,0.02,2586.1,2585.9,0.23147125]
[1751555456137,33.86727511,2585.8,2585.3,0.1928]
[1751555456339,0.1928,2585.6,2585.1,0.9522]
[1751555456539,4.0603961,2585.6,2585.2,3.86810063]
[1751555456926,0.1928,2585.6,2585.2,3.86810063]
[1751555457130,0.1928,2585.6,2585.3,3.86795213]
[1751555457538,3.86810862,2585.3,2584.9,0.01]
[1751555457885,3.86818505,2585.2,2584.9,0.01]
[1751555458041,0.65984086,2585.3,2584.9,3.87854119]
[1751555458369,0.65984086,2585.3,2584.9,0.01]
[1751555458567,40.0,2585.8,2584.9,3.91729315]
[1751555458770,3.86736393,2585.8,2585.2,3.86813959]
[1751555458971,2.9496,2585.9,2585.0,3.86847195]
[1751555458972,0.8126,2585.9,2585.0,3.86847195]
[1751555459174,3.88684585,2586.1,2584.9,0.04868621]
[1751555459175,0.02,2586.1,2585.9,3.86711812]
[1751555459363,0.02,2586.1,2585.8,3.86718344]
[1751555459575,0.02,2586.1,2585.6,3.90615759]
[1751555459760,0.02,2586.1,2585.8,3.86717385]
[1751555459958,0.02,2586.1,2585.8,3.86721377]
[1751555460290,0.02,2586.1,2585.6,0.03867574]
[1751555460457,0.02,2586.5,2586.4,3.86637797]
[1751555460658,0.02,2586.5,2586.4,5.24424174]
[1751555461885,0.02,2586.5,2586.4,5.20557797]
[1751555462082,0.02,2586.5,2586.4,4.69424174]
[1751555462389,0.02,2586.5,2586.4,3.90504174]
[1751555463094,0.02,2586.5,2586.4,6.06549651]
[1751555463297,0.02,2586.5,2586.4,6.85469651]
[1751555463506,1e-08,2586.5,2586.4,6.85469651]
[1751555464258,1e-08,2586.5,2586.4,6.81603274]
[1751555464466,1e-08,2586.5,2586.4,6.85469651]
[1751555464664,1e-08,2586.7,2586.6,5.18677902]
[1751555464866,1e-08,2586.7,2586.6,14.2645039]
[1751555465100,1e-08,2586.7,2586.6,14.22584311]
[1751555465725,1e-08,2586.9,2586.8,3.86578011]
[1751555465920,1e-08,2586.9,2586.8,4.45443791]
[1751555468511,1e-08,2586.9,2586.8,4.64723791]
[1751555468714,1e-08,2586.9,2586.8,5.03786734]
[1751555469198,1e-08,2587.0,2586.9,4.41563067]
[1751555469413,1e-08,2587.0,2586.9,25.83446474]
[1751555469812,1e-08,2587.2,2587.1,3.86533183]
[1751555470025,1e-08,2587.2,2587.1,4.99730139]
[1751555470229,1e-08,2587.2,2587.1,6.80055616]
[1751555470527,1e-08,2587.2,2587.1,17.35055616]
[1751555470708,1e-08,2587.2,2587.1,17.31190285]
[1751555471104,0.02,2587.8,2587.7,4.41443559]
[1751555471313,0.02,2587.8,2587.7,13.59157994]
[1751555471501,0.02,2587.8,2587.7,14.45279968]
[1751555473217,0.02,2587.8,2587.7,13.90279968]
[1751555473417,0.02,2587.8,2587.7,5.57379968]
[1751555473923,0.02,2587.8,2587.7,13.93944403]
[1751555474116,0.02,2587.8,2587.7,13.90079968]
[1751555475515,0.02,2587.8,2587.7,0.1928]
[1751555475745,0.02,2587.8,2587.7,4.05723559]
[1751555476117,0.02,2587.8,2587.7,4.09587994]
[1751555476318,0.02,2587.8,2587.7,12.38223559]
[1751555476851,0.02,2587.8,2587.1,2.42735477]
[1751555477150,0.02,2587.8,2587.5,3.86472157]
[1751555477351,0.02,2587.8,2587.7,3.86443559]
[1751555477646,0.02,2587.8,2587.7,4.68133559]
[1751555477815,0.02,2587.8,2587.7,13.55633559]
[1751555478837,0.02,2587.8,2587.7,12.18943559]
[1751555480058,1e-08,2588.0,2587.9,4.41413694]
[1751555480349,1e-08,2588.0,2587.9,22.73813694]
[1751555480517,1e-08,2588.0,2587.9,12.73813694]
[1751555480720,1e-08,2588.0,2587.9,12.18813694]
[1751555481722,1e-08,2588.0,2587.5,10.0]
[1751555481925,1e-08,2588.0,2587.6,12.18749423]
[1751555482119,1e-08,2588.0,2587.8,3.86419133]
[1751555482317,1e-08,2588.0,2587.6,8.323]
[1751555482518,1e-08,2588.0,2587.6,3.86457725]
[1751555482722,0.7982,2587.9,2587.6,8.323]
[1751555482950,0.7982,2587.9,2587.6,12.18758417]
[1751555483151,0.7982,2587.9,2587.6,8.323]
[1751555483358,4.6623529,2587.9,2587.6,8.323]
[1751555483558,4.6623529,2587.9,2587.5,3.86466054]
[1751555483745,0.7982,2587.9,2587.6,3.86456921]
[1751555483948,0.7982,2587.9,2587.5,3.86466175]
[1751555484259,0.7982,2587.9,2587.4,10.455]
[1751555484446,0.7982,2587.9,2587.6,3.86451673]
[1751555484839,0.7982,2587.9,2587.5,3.86466802]
[1751555485039,1.26443148,2587.9,2587.5,3.86466802]
[1751555485737,1.26443148,2587.9,2587.6,3.86455221]
[1751555485937,1.26443148,2587.9,2587.5,3.86465614]
[1751555486139,1.26443148,2587.9,2587.6,3.86457094]
[1751555486461,1.26443148,2587.9,2587.7,3.8643992]
[1751555486630,0.7982,2587.9,2587.7,3.8643992]
[1751555487139,0.7982,2587.9,2587.6,3.86449946]
[1751555487552,0.7982,2587.9,2587.7,3.8644102]
[1751555488052,0.7982,2587.9,2587.8,3.86428626]
[1751555488360,0.7982,2587.9,2587.6,0.03864584]
[1751555488744,0.7982,2587.9,2587.7,3.86438652]
[1751555489164,0.7982,2587.9,2587.8,3.86428626]
[1751555490362,1e-08,2588.0,2587.9,3.86413694]
[1751555490540,1e-08,2588.0,2587.9,3.9027783]
[1751555490875,1e-08,2588.0,2587.9,4.87228476]
[1751555491157,1e-08,2588.0,2587.9,4.8336434]
[1751555491348,1e-08,2588.0,2587.9,5.42228476]
[1751555491932,1e-08,2588.0,2587.4,8.321]
[1751555492179,1e-08,2588.0,2587.9,3.86413694]
[1751555492334,0.7652,2588.9,2588.8,3.86279357]
[1751555492872,0.7852,2589.1,2588.9,3.86264436]
[1751555493030,0.7852,2589.1,2588.9,3.86254388]
[1751555493231,0.7852,2589.1,2588.8,0.1928]
[1751555493435,0.7852,2589.1,2589.0,3.86249517]
[1751555494263,0.7852,2589.1,2588.8,4.05553802]
[1751555494456,0.7852,2589.1,2588.9,0.03862644]
[1751555494659,0.7852,2589.1,2588.9,3.9011929]
[1751555494858,0.7852,2589.1,2588.9,0.03862644]
[1751555495257,0.7852,2589.1,2588.8,0.1928]
[1751555495770,0.7852,2589.1,2588.8,4.0554802]
[1751555495945,0.7852,2589.1,2588.9,3.86260952]
[1751555496269,0.7852,2589.1,2589.0,3.86249517]
[1751555497773,0.7852,2589.1,2588.9,3.86255414]
[1751555498355,0.7852,2589.1,2588.8,0.1928]
[1751555498674,0.7852,2589.1,2589.0,3.86249517]
[1751555499256,0.8186,2589.4,2589.2,3.86219681]
[1751555499458,22.37583407,2590.3,2589.3,3.86204765]
[1751555499459,0.8186,2589.7,2589.3,3.86204765]
[1751555499664,0.8186,2589.7,2589.5,3.86166644]
[1751555499964,0.8186,2589.7,2589.4,3.86182196]
[1751555500162,0.8186,2589.7,2589.5,3.86168266]
[1751555500595,0.8186,2589.7,2589.1,0.55]
[1751555500892,0.8186,2589.7,2589.3,3.86196787]
[1751555501051,0.8186,2589.7,2589.4,3.8618985]
[1751555501250,0.8186,2589.7,2589.6,3.86160024]
[1751555501681,0.8265,2590.0,2589.6,3.86148709]
[1751555501850,0.8265,2590.0,2589.7,3.86138011]
[1751555502055,3.86120282,2589.9,2589.4,3.86182631]
[1751555502283,0.8265,2590.0,2589.5,3.86174937]
[1751555502489,10.8265,2590.0,2589.6,3.86158194]
[1751555502688,0.8265,2590.0,2589.6,3.86158194]
[1751555503199,10.8265,2590.0,2589.7,3.86142676]
[1751555503385,0.8265,2590.0,2589.6,3.86151702]
[1751555503573,0.8265,2590.0,2589.7,3.86138361]
[1751555503893,10.8265,2590.0,2589.6,3.86149384]
[1751555504694,10.8365,2590.0,2589.5,3.90028817]
[1751555504898,14.6975708,2590.0,2589.5,3.90034019]
[1751555505198,4.69756582,2590.0,2589.5,3.9003663]
[1751555505669,4.69756582,2590.0,2589.6,3.86158756]
[1751555505869,4.69756582,2590.0,2589.5,3.9002984]
[1751555506571,4.69756582,2590.0,2589.3,3.86197156]
[1751555506572,3.86141377,2589.8,2589.3,3.86197156]
[1751555506875,1.69233288,2590.0,2589.6,3.86159342]
[1751555507068,4.69754528,2590.0,2589.5,3.86165929]
[1751555507272,0.8365,2590.0,2589.6,3.86156579]
[1751555507611,3.86115994,2589.9,2589.5,3.8616713]
[1751555508108,3.86136538,2589.8,2589.3,3.86202198]
[1751555508296,3.861504,2589.7,2589.2,3.86211696]
[1751555508598,3.861504,2589.7,2589.0,3.86240006]
[1751555508599,3.86181719,2589.5,2589.0,3.86240006]
[1751555509102,3.86167328,2589.6,2589.1,3.86223936]
[1751555509305,0.1928,2589.4,2589.1,3.86223936]
[1751555510178,0.1928,2589.4,2589.2,3.86219636]
[1751555510526,0.7511,2589.7,2589.3,3.86204765]
[1751555510796,0.1928,2589.6,2589.2,0.03862196]
[1751555510996,5.58203246,2589.6,2589.1,0.1928]
[1751555511401,1.52750645,2589.6,2588.8,0.7915]
[1751555511579,0.9439,2589.7,2589.3,3.86193827]
[1751555512409,10.9439,2589.7,2589.3,3.86193827]
[1751555512605,10.9439,2589.7,2589.2,4.05494774]
[1751555512770,3.86175464,2589.5,2589.2,0.1928]
[1751555513292,3.86178226,2589.5,2589.2,0.1928]
[1751555513799,3.86166103,2589.6,2589.2,4.05498042]
[1751555513996,4.72835305,2589.6,2589.1,3.86225922]
[1751555514302,4.61255324,2589.7,2589.1,3.86225922]
[1751555514303,4.05455468,2589.5,2589.1,3.86225922]
[1751555514811,0.1928,2589.5,2589.1,3.86225922]
[1751555515614,0.1928,2589.5,2589.0,4.0552943]
[1751555515811,4.05456994,2589.5,2589.1,3.86221733]
[1751555516010,0.1928,2589.5,2589.1,3.8622529]
[1751555516397,4.05455455,2589.5,2589.1,3.8622529]
[1751555516603,0.1928,2589.5,2589.1,3.8622529]
[1751555516774,0.1928,2589.5,2589.2,3.86219354]
[1751555516979,0.1928,2589.5,2589.3,3.86203597]
[1751555517479,0.1928,2589.5,2589.4,3.8618985]
[1751555517904,0.7511,2589.7,2589.5,3.86169242]
[1751555518202,0.7511,2589.7,2589.3,4.05479741]
[1751555518406,0.7511,2589.7,2589.4,3.86183902]
[1751555518612,4.61255714,2589.7,2589.3,0.1928]
[1751555519474,0.7511,2589.7,2589.4,3.86183705]
[1751555519698,0.7511,2589.7,2589.4,3.86180486]
[1751555519890,0.7511,2589.7,2589.4,3.8618985]
[1751555520417,0.7511,2589.7,2589.4,3.86183429]
[1751555520584,0.7511,2589.7,2589.4,3.8618985]
[1751555520780,0.7511,2589.7,2589.5,3.86174249]
[1751555521496,0.7511,2589.7,2589.6,3.86160024]
[1751555521702,0.7511,2589.7,2589.3,0.1928]
[1751555521897,0.7511,2589.7,2589.4,3.86181936]
[1751555522689,0.7511,2589.7,2589.6,3.86160024]
[1751555522893,0.01,2590.0,2589.5,0.03861749]
[1751555522894,0.7608,2590.0,2589.7,3.86145113]
[1751555523112,0.1928,2589.9,2589.7,3.86145113]
[1751555523423,0.7608,2590.0,2589.4,0.79165699]
[1751555523735,10.01,2590.0,2589.9,3.86115294]
[1751555523933,0.01,2590.0,2589.9,4.44006823]
[1751555525314,0.01,2590.0,2589.9,4.47867975]
[1751555525612,1e-08,2590.0,2589.9,5.02867975]
[1751555525782,1e-08,2590.0,2589.9,15.02867975]
[1751555525984,1e-08,2590.0,2589.9,15.80876823]
[1751555526180,1e-08,2590.0,2589.9,29.18467517]
[1751555529596,0.02,2591.1,2590.6,0.7967]
[1751555529800,0.02,2591.1,2591.0,3.8595137]
[1751555529985,0.02,2591.1,2591.0,12.3503137]
[1751555531009,0.02,2591.1,2591.0,0.1928]
[1751555531222,0.818,2591.0,2590.6,0.1928]
[1751555531392,4.67751739,2591.0,2590.6,4.05290769]
[1751555531718,1.69295733,2591.0,2590.6,4.05290769]
[1751555532219,0.818,2591.0,2590.7,3.85995856]
[1751555532537,0.818,2591.0,2590.8,3.85979955]
[1751555532692,0.02,2591.1,2591.0,3.8595137]
[1751555532891,0.02,2591.1,2591.0,3.89810883]
[1751555533499,0.02,2591.1,2591.0,12.1555137]
[1751555533702,0.02,2591.1,2591.0,8.296]
[1751555533918,0.02,2591.1,2591.0,12.1555137]
[1751555534325,0.02,2591.1,2590.4,10.0]
[1751555534631,0.02,2591.1,2591.0,3.8595137]
[1751555535623,0.02,2591.1,2590.9,3.85965066]
[1751555535799,0.02,2591.1,2590.8,8.4888]
[1751555536699,3.87937162,2591.1,2590.8,8.294]
[1751555537004,3.87937162,2591.1,2590.6,3.86002876]
[1751555537005,0.2128,2591.1,2590.6,4.05282876]
[1751555537204,0.2128,2591.1,2590.4,1.38604141]
[1751555537205,3.85972957,2590.9,2590.4,12.15434209]
[1751555537405,0.1928,2590.8,2590.4,12.34714209]
[1751555537605,3.86007796,2590.7,2590.4,0.1928]
[1751555537915,4.66001837,2590.6,2590.2,0.1928]
[1751555538222,4.66001837,2590.6,2590.2,4.05348794]
[1751555538223,0.7999,2590.6,2590.2,4.05348794]
[1751555538529,0.7999,2590.6,2590.3,3.86043967]
[1751555539196,0.7999,2590.6,2590.2,4.05342285]
[1751555539399,0.7999,2590.6,2590.3,3.8604473]
[1751555539639,4.66009409,2590.6,2590.2,0.1928]
[1751555539843,4.66009409,2590.6,2590.2,4.05348826]
[1751555540007,0.7999,2590.6,2590.3,3.86053492]
[1751555540403,0.7999,2590.6,2590.4,3.86040326]
[1751555540598,0.7999,2590.6,2590.4,3.86040765]
[1751555541106,0.7999,2590.6,2590.3,3.86048412]
[1751555541292,0.7999,2590.6,2590.4,3.86040506]
[1751555541698,0.7999,2590.6,2590.2,0.1928]
[1751555541900,0.7999,2590.6,2590.3,3.86042991]
[1751555543343,0.7999,2590.6,2590.4,3.86038228]
[1751555544510,0.7999,2590.6,2590.3,3.86049625]
[1751555544705,4.66004429,2590.6,2590.2,0.1928]
[1751555544947,1.28515253,2590.6,2590.2,4.05344194]
[1751555546812,5.14527294,2590.6,2590.2,4.05344194]
[1751555547246,5.14527294,2590.6,2590.3,3.86054853]
[1751555547247,1.28515253,2590.6,2590.3,3.86054853]
[1751555547552,0.8177,2590.9,2590.4,0.03860407]
[1751555547757,9.0205,2591.1,2590.9,3.85959441]
[1751555548073,9.0205,2591.1,2590.8,3.85972747]
[1751555548405,9.0205,2591.1,2590.6,0.03860109]
[1751555548605,9.0205,2591.1,2590.9,3.85958276]
[1751555549248,9.0205,2591.1,2590.7,3.85992262]
[1751555549452,9.0205,2591.1,2590.9,3.85962578]
[1751555550053,9.0205,2591.1,2590.8,3.85972934]
[1751555550352,9.0205,2591.1,2590.8,3.8597697]
[1751555550649,9.0205,2591.1,2590.7,3.8598346]
[1751555550849,9.0205,2591.1,2590.8,3.85979466]
[1751555551215,9.0205,2591.1,2590.7,3.85987495]
[1751555551433,9.0205,2591.1,2590.8,3.85975849]
[1751555551744,8.8277,2591.1,2591.0,3.8595137]
[1751555552045,8.8277,2591.1,2590.8,4.47943188]
[1751555552247,8.8277,2591.1,2590.8,0.1928]
[1751555552719,0.8377,2591.1,2590.8,0.1928]
[1751555553419,0.8377,2591.1,2590.9,3.85958697]
[1751555553622,0.02,2591.1,2591.0,3.8595137]
[1751555553815,0.02,2591.1,2591.0,3.89810883]
[1751555554049,0.02,2591.1,2590.7,3.85984938]
[1751555554357,0.02,2591.1,2590.7,4.05264938]
[1751555554544,3.87937628,2591.1,2590.7,0.1928]
[1751555555045,0.8227,2591.0,2590.7,4.05274996]
[1751555555240,0.8227,2591.0,2590.7,5.71336177]
[1751555555434,0.8227,2591.0,2590.7,1.85341181]
[1751555555640,13.91153407,2591.0,2590.2,3.86056005]
[1751555555841,13.91153407,2591.0,2590.0,0.791]
[1751555555842,3.86083859,2590.2,2590.0,0.02]
[1751555556055,30.0,2590.1,2590.0,0.02]
[1751555556218,4.05365479,2590.1,2590.0,0.02]
[1751555556926,4.84925479,2590.1,2590.0,0.02]
[1751555557132,6.72026069,2590.1,2590.0,0.02]
[1751555557449,4.84925479,2590.1,2590.0,0.02]
[1751555557956,0.8303,2590.5,2590.0,3.88100386]
[1751555558122,4.69068575,2590.5,2590.0,0.02]
[1751555558448,3.86056555,2590.3,2590.0,0.02]
[1751555558636,4.71568815,2590.3,2590.0,0.02]
[1751555558843,0.8551226,2590.3,2590.0,0.02]
[1751555559041,0.8303,2590.5,2590.1,3.8607427]
[1751555559226,3.86041089,2590.4,2590.0,0.02]
[1751555559422,3.86057697,2590.3,2590.0,0.02]
[1751555559747,3.86055711,2590.3,2590.0,0.02]
[1751555559953,13.86055711,2590.3,2590.0,0.02]
[1751555560152,15.80638547,2590.3,2590.0,0.02]
[1751555560359,5.80638547,2590.3,2590.0,0.02]
[1751555560565,13.86055711,2590.3,2590.0,0.02]
[1751555560856,3.8607234,2590.2,2590.0,0.02]
[1751555561153,4.64215479,2590.1,2590.0,0.02]
[1751555562324,10.7813,2590.1,2590.0,0.02]
[1751555562549,0.7813,2590.1,2590.0,0.02]
[1751555563355,6.1063639,2590.1,2590.0,0.02]
[1751555563532,2.24550911,2590.1,2590.0,0.02]
[1751555564367,6.1063639,2590.1,2590.0,0.02]
[1751555566174,36.1063639,2590.1,2590.0,0.02]
[1751555568045,7.01316497,2590.1,2590.0,0.02]
[1751555568242,36.1063639,2590.1,2590.0,0.02]
[1751555568646,37.0129065,2590.1,2590.0,0.02]
[1751555570654,46.5043639,2590.1,2590.0,0.02]
[1751555570860,38.2273639,2590.1,2590.0,0.02]
[1751555571860,34.36650911,2590.1,2590.0,0.02]
[1751555572064,8.2273639,2590.1,2590.0,0.02]
[1751555572383,13.08883407,2590.6,2590.0,0.02]
[1751555572384,34.66493649,2590.6,2590.0,0.02]
[1751555572587,0.1928,2590.4,2590.0,0.05861003]
[1751555572753,0.1928,2590.4,2590.0,3.91950082]
[1751555572952,0.1928,2590.4,2590.2,3.86066742]
[1751555573152,0.1928,2590.4,2590.1,3.86077453]
[1751555573988,0.1928,2590.4,2590.1,0.7973185]
[1751555574282,0.1928,2590.4,2590.1,4.65808917]
[1751555575283,0.1928,2590.4,2590.0,3.9195523]
[1751555575479,0.1928,2590.4,2590.1,3.86084035]
[1751555576064,0.1928,2590.4,2590.0,3.9195327]
[1751555576259,0.1928,2590.4,2590.1,3.86084154]
[1751555576467,0.1928,2590.4,2590.1,3.86082022]
[1751555576696,0.1928,2590.4,2590.2,4.25255775]
[1751555577064,0.1928,2590.4,2590.2,0.39194303]
[1751555577376,4.05329422,2590.4,2590.0,0.02]
[1751555577583,0.1928,2590.4,2590.0,3.8809663]
[1751555577876,0.8271,2590.3,2590.0,0.02]
[1751555579400,34.05365479,2590.1,2590.0,0.02]
[1751555579895,0.1928,2590.1,2590.0,0.02]
[1751555586120,0.1928,2590.1,2590.0,3.88100386]
[1751555586688,0.1928,2590.1,2590.0,0.02]
[1751555587680,0.1928,2590.1,2590.0,3.88100386]
[1751555589198,0.1928,2590.1,2590.0,0.02]
[1751555589384,0.1928,2590.1,2590.0,3.88100386]
[1751555590011,0.1928,2590.1,2590.0,0.02]
[1751555590518,0.1928,2590.1,2590.0,3.88100386]
[1751555592784,0.1928,2590.1,2590.0,0.02]
[1751555592986,0.1928,2590.1,2590.0,3.88100386]
[1751555594206,0.1928,2590.3,2590.2,3.86061506]
[1751555595218,9.279,2590.7,2590.2,0.03860705]
[1751555595381,9.4718,2590.7,2590.6,3.86010962]
[1751555595588,0.1928,2590.7,2590.6,3.86010962]
[1751555596289,0.1928,2590.7,2590.3,3.86046657]
[1751555596590,8.36039546,2590.6,2590.3,3.86046657]
[1751555596783,0.1928,2590.7,2590.5,3.8601663]
[1751555596980,0.1928,2590.7,2590.6,3.86010962]
[1751555597422,0.1928,2590.7,2590.4,3.86033553]
[1751555597711,0.1928,2590.7,2590.5,3.86017908]
[1751555597918,0.1928,2590.7,2590.4,3.86033553]
[1751555598096,0.1928,2590.7,2590.5,3.86016932]
[1751555598298,0.1928,2590.7,2590.4,3.86032822]
[1751555598530,0.1928,2590.7,2590.5,3.86016395]
[1751555599821,0.1928,2590.7,2590.6,3.86010962]
[1751555600031,0.1928,2590.9,2590.5,3.86024324]
[1751555600337,1.10365125,2590.9,2590.5,3.86024324]
[1751555600694,8.36039546,2590.8,2590.5,3.86024324]
[1751555600896,8.36039546,2590.8,2590.6,3.86009972]
[1751555601234,8.36039546,2590.8,2590.5,4.7306793]
[1751555601392,8.36039546,2590.8,2590.4,4.05316258]
[1751555601596,8.36039546,2590.6,2590.0,4.6639926]
[1751555601817,0.1928,2590.5,2590.2,3.86062775]
[1751555602133,8.55319546,2590.5,2590.0,1.03451003]
[1751555602426,8.55319546,2590.5,2590.3,3.86047562]
[1751555602923,8.55319546,2590.5,2590.0,0.9959]
[1751555603125,8.55319546,2590.5,2590.2,3.8605614]
[1751555603308,8.36039546,2590.7,2590.4,3.86040765]
[1751555603510,0.1928,2590.6,2590.4,3.86040765]
[1751555604308,0.9111751,2590.8,2590.3,0.03860556]
[1751555604507,1.1039751,2590.8,2590.3,4.09196225]
[1751555604706,1.1039751,2590.8,2590.3,0.1928]
[1751555604707,4.96379708,2590.8,2590.3,0.1928]
[1751555605047,4.96379708,2590.8,2590.0,0.8031]
[1751555605048,8.36039546,2590.5,2590.0,0.8031]
[1751555605197,8.36039546,2590.3,2590.0,4.85684327]
[1751555606128,8.36039546,2590.3,2590.0,0.9959]
[1751555606832,8.36039546,2590.3,2590.0,4.85686079]
[1751555607126,8.36039546,2590.3,2590.0,0.9959]
[1751555607344,8.36039546,2590.3,2590.0,4.85685296]
[1751555608436,8.36039546,2590.3,2590.0,0.9959]
[1751555609052,8.36039546,2590.3,2590.0,4.07380338]
[1751555609351,13.22957682,2590.5,2590.0,4.07380338]
[1751555609524,3.86045306,2590.4,2590.0,0.2128]
[1751555610002,13.22953998,2590.5,2590.0,4.07378834]
[1751555610199,3.86041112,2590.4,2590.0,0.2128]
[1751555610747,3.86041112,2590.4,2590.0,0.02]
[1751555610748,42.22125025,2590.1,2590.0,0.02]
[1751555611055,38.36039546,2590.1,2590.0,0.02]
[1751555611549,42.22125025,2590.1,2590.0,0.02]
[1751555612443,12.22125025,2590.1,2590.0,0.02]
[1751555613551,12.62439577,2590.1,2590.0,0.02]
[1751555614273,12.22125025,2590.1,2590.0,0.02]
[1751555616320,3.86145113,2589.7,2589.0,3.86241172]
[1751555616527,8.36039546,2589.1,2588.9,4.71218929]
[1751555616836,8.36039546,2589.1,2588.9,0.8496]
[1751555617043,8.36039546,2589.3,2589.0,3.86249517]
[1751555617249,8.36039546,2589.5,2589.1,3.86231962]
[1751555617644,8.36039546,2589.5,2589.0,0.03862495]
[1751555617836,12.22215427,2589.5,2589.0,0.03862495]
[1751555618043,12.22215427,2589.5,2589.0,3.90103885]
[1751555618451,0.8118,2589.8,2589.0,0.89994893]
[1751555618452,2.9138,2589.8,2589.0,0.89994893]
[1751555618643,8.36039546,2590.0,2589.0,0.89994893]
[1751555618644,13.01306235,2589.9,2589.4,4.63079015]
[1751555618959,8.36039546,2589.8,2589.4,4.66945145]
[1751555619475,12.22170229,2589.8,2589.4,0.769]
[1751555619626,8.36039546,2589.6,2589.2,0.7911]
[1751555619829,8.36039546,2589.6,2589.3,3.86190475]
[1751555620072,8.36039546,2589.6,2589.4,3.86188779]
[1751555620458,8.36039546,2589.6,2589.5,3.86174937]
[1751555621146,8.36039546,2589.6,2589.4,3.86184133]
[1751555621832,8.36039546,2589.6,2589.5,3.86174937]
[1751555622028,8.36039546,2589.6,2589.4,3.86181232]
[1751555622261,8.36039546,2589.6,2589.5,3.86174937]
[1751555622526,0.1928,2589.8,2589.6,3.86156306]
[1751555623418,0.1928,2589.8,2589.6,3.86160024]
[1751555623717,11.1212,2590.0,2589.8,3.86120622]
[1751555623718,0.1928,2590.0,2589.8,3.86120622]
[1751555624011,0.1928,2590.0,2589.7,3.86136587]
[1751555624392,0.1928,2590.0,2589.6,3.86148839]
[1751555624393,8.36039546,2589.9,2589.6,3.86152568]
[1751555624786,8.36039546,2589.9,2589.7,3.86144669]
[1751555626413,8.36039546,2589.9,2589.8,3.86130203]
[1751555626915,8.36039546,2589.9,2589.7,3.86136151]
[1751555627119,8.36039546,2589.9,2589.8,3.86130203]
[1751555627431,8.36039546,2589.9,2589.6,3.86152099]
[1751555627573,8.36039546,2589.9,2589.7,3.86142332]
[1751555628573,8.36039546,2589.9,2589.7,3.86136309]
[1751555628976,9.21671501,2589.9,2589.4,3.86177526]
[1751555629181,8.36039546,2589.6,2589.2,3.86215522]
[1751555629522,8.36039546,2589.4,2589.3,3.86204765]
[1751555629705,8.55319546,2589.6,2589.3,3.86204765]
[1751555630476,8.55319546,2589.6,2589.1,4.8875011]
[1751555630682,12.41487111,2589.6,2589.1,4.88746425]
[1751555630923,12.41479769,2589.6,2589.2,3.86212357]
[1751555631080,8.55319546,2589.6,2589.2,3.86212357]
[1751555631616,8.55319546,2589.6,2589.3,3.86202365]
[1751555632612,8.55319546,2589.6,2589.2,3.86211307]
[1751555633306,8.55319546,2589.6,2589.1,4.07506781]
[1751555633307,12.4148716,2589.6,2589.1,4.07506781]
[1751555633499,8.36039546,2589.4,2589.1,4.07506781]
[1751555633676,8.36039546,2589.4,2589.2,3.86218854]
[1751555634293,12.80716368,2589.6,2589.2,3.86218854]
[1751555634491,12.80716368,2589.6,2589.1,0.2128]
[1751555634820,8.94554875,2589.6,2589.3,3.86203557]
[1751555636796,8.94554875,2589.6,2589.2,3.86211787]
[1751555636997,12.80719139,2589.6,2589.1,4.07505849]
[1751555637212,12.80719139,2589.6,2589.2,3.86218861]
[1751555637394,12.80719139,2589.6,2589.1,4.11368464]
[1751555637594,8.94554875,2589.6,2589.2,3.86213816]
[1751555637796,12.8071537,2589.6,2589.2,3.86213816]
[1751555638118,8.94554875,2589.6,2589.3,3.86202725]
[1751555638313,8.94554875,2589.6,2589.2,3.86210704]
[1751555639290,12.80716146,2589.6,2589.2,3.86210704]
[1751555639731,12.80716146,2589.6,2589.1,0.25142345]
[1751555639732,8.36039546,2589.4,2589.1,0.2128]
[1751555639917,12.22259227,2589.2,2589.1,0.02]
[1751555640126,3.86249517,2589.0,2588.9,0.02]
[1751555640440,53.31929063,2589.0,2588.9,0.02]
[1751555640839,54.58580757,2589.0,2588.9,0.02]
[1751555641002,58.43470005,2589.0,2588.9,0.02]
[1751555641996,28.43470005,2589.0,2588.9,0.02]
[1751555642296,58.43470005,2589.0,2588.9,0.02]
[1751555642828,57.52397098,2589.0,2588.9,0.02]
[1751555643025,58.43351451,2589.0,2588.9,0.02]
[1751555643816,3.86335705,2588.5,2588.1,0.02]
[1751555643988,8.36039546,2588.3,2588.1,0.02]
[1751555647097,42.90458905,2588.2,2588.1,0.02]